bitfinex-derivatives/quotes_ETHF0:USTF0_20250114
["timestamp","ask_amount","ask_price","bid_price","bid_amount"]
[1736823281034,0.3167,3158.8,3158.6,0.31671]
[1736823281338,0.31669,3158.9,3158.6,0.31671]
[1736823281933,3.52448,3159.0,3158.7,0.3167]
[1736823282229,3.52448,3159.0,3158.6,0.31671]
[1736823282230,0.31668,3158.9,3158.6,0.31671]
[1736823282429,0.31668,3158.9,3158.7,0.3167]
[1736823283332,0.31668,3158.9,3158.8,0.4652]
[1736823284243,3.2078,3159.0,3158.8,0.4652]
[1736823284745,3.52448,3159.0,3158.8,0.78189]
[1736823284937,3.2078,3159.0,3158.8,0.78189]
[1736823286141,0.31668,3158.9,3158.8,0.4652]
[1736823287343,3.2078,3159.0,3158.8,0.4652]
[1736823287540,0.31668,3158.9,3158.8,0.4652]
[1736823288449,3.2078,3159.0,3158.8,0.4652]
[1736823288744,3.52448,3159.0,3158.8,0.4652]
[1736823289340,0.31668,3158.9,3158.8,0.4652]
[1736823289539,3.52448,3159.0,3158.8,0.4652]
[1736823290043,0.31668,3159.0,3158.8,0.4652]
[1736823290237,0.31668,3159.0,3158.8,0.78189]
[1736823290439,0.31668,3159.0,3158.8,0.4652]
[1736823291343,0.31668,3158.9,3158.8,0.4652]
[1736823291546,0.81488,3158.9,3158.8,0.4652]
[1736823293044,0.4982,3158.9,3158.8,0.4652]
[1736823293348,0.81488,3158.9,3158.8,0.4652]
[1736823294049,0.4982,3158.9,3158.5,0.76872]
[1736823294351,0.31672,3158.6,3158.5,1.288]
[1736823295349,0.4838,3158.8,3158.5,1.288]
[1736823295551,0.4838,3158.8,3158.5,1.60472]
[1736823295552,0.31671,3158.7,3158.5,1.60472]
[1736823296049,0.31671,3158.6,3158.5,1.288]
[1736823297247,0.4838,3158.8,3158.5,1.288]
[1736823297449,0.31671,3158.7,3158.5,1.60472]
[1736823297757,0.3167,3158.7,3158.5,1.288]
[1736823298756,0.31671,3158.6,3158.5,1.288]
[1736823299656,3.2078,3158.6,3158.1,1.287]
[1736823299853,0.31676,3158.2,3158.1,1.287]
[1736823300449,0.31675,3158.3,3158.1,1.60376]
[1736823300749,0.31675,3158.2,3158.1,1.287]
[1736823301150,0.31675,3158.3,3158.1,1.60376]
[1736823301355,0.4852,3158.5,3158.1,1.60376]
[1736823301356,0.31675,3158.2,3158.1,1.287]
[1736823302456,0.4852,3158.5,3158.1,1.287]
[1736823302658,0.31675,3158.3,3158.1,1.60376]
[1736823302857,0.31675,3158.2,3158.1,1.287]
[1736823303058,0.31675,3158.3,3158.1,1.287]
[1736823303258,0.31675,3158.3,3158.1,1.60376]
[1736823303455,3.2078,3158.6,3158.2,2.54759258]
[1736823303754,3.2078,3158.6,3158.5,0.31672]
[1736823304053,0.4981,3159.0,3158.5,2.54759258]
[1736823304259,0.3167,3158.7,3158.6,1.4469]
[1736823304561,0.4981,3159.0,3158.6,1.4469]
[1736823304758,0.3167,3158.8,3158.6,1.76361]
[1736823305260,0.3167,3158.7,3158.6,1.4469]
[1736823305559,0.3167,3158.8,3158.6,1.76361]
[1736823306260,0.31669,3158.9,3158.6,1.76361]
[1736823306463,0.31669,3158.9,3158.7,0.3167]
[1736823309962,0.4981,3159.0,3158.6,1.7636]
[1736823310161,0.31669,3158.9,3158.7,0.3167]
[1736823311467,0.81478,3159.0,3158.7,0.3167]
[1736823312067,0.4981,3159.0,3158.6,1.4469]
[1736823312267,0.31668,3158.9,3158.7,0.31669]
[1736823313566,0.4981,3159.0,3158.6,1.4469]
[1736823314071,0.31669,3158.9,3158.7,0.3167]
[1736823314466,0.29709508,3159.4,3159.2,0.31664]
[1736823314667,0.31663,3159.4,3159.3,0.9394]
[1736823316665,0.48,3159.5,3158.8,7.04239258]
[1736823316867,0.31667,3159.0,3158.9,0.9929]
[1736823317067,0.48,3159.5,3158.9,0.9929]
[1736823317270,0.48,3159.5,3159.0,0.31667]
[1736823317477,0.31665,3159.2,3159.0,0.31667]
[1736823317971,0.31665,3159.2,3158.9,1.78087]
[1736823318674,0.31665,3159.3,3159.0,0.31667]
[1736823319070,0.31665,3159.2,3159.0,0.31667]
[1736823319569,0.31664,3159.3,3159.0,0.31667]
[1736823319765,0.31665,3159.2,3159.0,0.31667]
[1736823320171,0.48,3159.5,3158.9,1.4642]
[1736823320379,0.31665,3159.2,3158.9,1.78087]
[1736823320878,0.31665,3159.2,3159.0,0.31666]
[1736823322166,0.31665,3159.2,3158.9,1.4642]
[1736823322167,0.48,3159.5,3159.3,0.31663]
[1736823322366,0.48,3159.5,3159.4,0.4532]
[1736823323579,0.48,3159.5,3158.9,0.9929]
[1736823323781,0.31664,3159.3,3159.0,0.4995]
[1736823323984,0.48,3159.5,3159.0,0.4995]
[1736823324379,0.31665,3159.1,3159.0,0.4995]
[1736823324779,0.48,3159.5,3159.0,0.4995]
[1736823325281,0.31663,3159.4,3159.2,0.31664]
[1736823325679,0.31663,3159.4,3159.0,0.4995]
[1736823325680,0.79662,3159.5,3159.3,0.31663]
[1736823325982,0.79662,3159.5,3159.4,0.4846]
[1736823327886,0.48,3159.5,3159.4,0.80122]
[1736823328776,3.52441,3159.6,3159.4,0.80122]
[1736823328985,3.52441,3159.6,3159.5,0.9434]
[1736823329980,3.2078,3159.6,3159.5,1.26001]
[1736823330183,3.5244,3159.6,3159.5,0.9434]
[1736823332485,3.2078,3159.6,3159.1,1.287]
[1736823332687,0.31662,3159.5,3159.3,0.31663]
[1736823332891,3.2078,3159.6,3159.1,1.287]
[1736823333085,0.23289046,3159.9,3159.8,0.31658]
[1736823333390,0.54946046,3159.9,3159.8,1.08264403]
[1736823333686,0.31659,3159.8,3159.6,4.60704403]
[1736823333988,0.78669,3159.8,3159.6,3.5244]
[1736823334688,0.78669,3159.8,3159.6,3.2078]
[1736823334883,0.78669,3159.8,3159.5,1.29041]
[1736823335079,1.55274403,3159.8,3159.5,0.9738]
[1736823335284,1.08264403,3159.6,3159.2,3.2078]
[1736823335483,0.31663,3159.3,3159.2,3.2078]
[1736823336186,0.31663,3159.3,3159.1,0.77625]
[1736823336384,0.4712,3159.2,3159.0,1.287]
[1736823336582,0.31666,3159.1,3158.8,1.60368]
[1736823337491,0.78785,3159.2,3159.0,0.31666]
[1736823337692,0.4712,3159.2,3158.9,0.31667]
[1736823337891,3.2078,3159.6,3158.9,2.54271838]
[1736823338186,0.77461,3159.6,3159.3,0.31663]
[1736823338494,0.77461,3159.6,3159.4,1.424]
[1736823338694,0.3166,3159.7,3159.5,0.31661]
[1736823338887,0.3166,3159.7,3159.4,1.74062]
[1736823340390,0.77459,3159.8,3159.4,1.424]
[1736823340592,0.31658,3159.9,3159.4,1.424]
[1736823340792,0.31658,3159.9,3159.6,0.3166]
[1736823341291,0.3166,3159.7,3159.5,0.31661]
[1736823341493,0.31659,3159.8,3159.5,0.31661]
[1736823341693,0.31659,3159.7,3159.5,0.31661]
[1736823342093,3.6922,3160.0,3159.4,1.424]
[1736823342294,0.31659,3159.8,3159.6,0.3166]
[1736823344492,3.6922,3160.0,3159.6,0.3166]
[1736823344697,0.31658,3159.9,3159.7,0.31659]
[1736823344994,0.31658,3159.8,3159.6,0.3166]
[1736823353301,3.6922,3160.0,3159.5,7.03651838]
[1736823353500,0.83084782,3160.3,3159.8,2.85928838]
[1736823353707,0.31657,3160.0,3159.9,1.4336]
[1736823353903,0.476,3160.2,3159.9,1.4336]
[1736823354197,0.31656,3160.1,3159.9,1.75017]
[1736823354403,3.2078,3160.4,3160.3,0.31653]
[1736823354604,3.52433,3160.4,3160.2,1.60254]
[1736823355107,3.52433,3160.4,3160.3,0.4686]
[1736823356208,3.2078,3160.4,3160.2,1.286]
[1736823356408,0.31653,3160.3,3160.2,1.286]
[1736823359104,3.2078,3160.4,3160.2,1.286]
[1736823359105,3.52433,3160.4,3160.2,1.286]
[1736823359509,3.52433,3160.4,3160.2,1.60254]
[1736823360212,0.31653,3160.3,3160.2,1.286]
[1736823360908,3.52433,3160.4,3160.2,1.60254]
[1736823362011,3.2078,3160.4,3160.2,1.286]
[1736823362404,0.31652,3160.4,3160.2,1.60254]
[1736823363109,0.476,3160.6,3160.2,1.286]
[1736823363309,0.31653,3160.4,3160.2,1.60254]
[1736823365809,0.31653,3160.4,3160.2,1.286]
[1736823366111,0.31653,3160.3,3160.2,1.286]
[1736823368908,5.75051838,3160.5,3159.9,5.4588]
[1736823369112,0.31655,3160.1,3159.9,5.77537]
[1736823369314,0.31655,3160.1,3160.0,0.4839]
[1736823371319,0.80095,3160.2,3160.0,0.80046]
[1736823371521,0.31655,3160.1,3160.0,0.80046]
[1736823371818,0.31655,3160.1,3160.0,0.4839]
[1736823373425,0.31656,3160.0,3159.9,3.2078]
[1736823373623,0.81416,3160.0,3159.9,3.2078]
[1736823377617,0.31658,3159.8,3159.7,0.9408]
[1736823378023,3.7054,3160.0,3159.6,0.488]
[1736823378332,0.31659,3159.8,3159.6,0.488]
[1736823379022,3.2078,3160.0,3159.6,0.488]
[1736823379222,3.2078,3160.4,3159.9,2.54271838]
[1736823379427,3.2078,3160.4,3160.1,0.31655]
[1736823379428,0.31653,3160.3,3160.1,0.31655]
[1736823380429,0.31653,3160.4,3160.1,0.31655]
[1736823380720,0.31654,3160.3,3160.1,0.31655]
[1736823380921,0.31654,3160.3,3160.0,1.70846]
[1736823381319,0.31655,3160.2,3160.0,1.3919]
[1736823381524,0.4693,3160.7,3160.0,1.3919]
[1736823381929,0.31655,3160.1,3160.0,1.3919]
[1736823382731,0.31655,3160.2,3160.0,1.3919]
[1736823384432,0.4693,3160.7,3160.0,1.3919]
[1736823384627,0.31655,3160.2,3160.0,1.70846]
[1736823385128,0.31653,3160.4,3160.1,0.31655]
[1736823385327,0.31653,3160.4,3160.2,0.31654]
[1736823386120,0.31652,3160.5,3160.3,0.31653]
[1736823386530,0.31652,3160.5,3160.4,0.4826]
[1736823391227,0.31654,3160.2,3160.1,3.2078]
[1736823392032,0.31654,3160.2,3160.0,0.9119]
[1736823392235,5.75051838,3160.6,3159.8,0.31658]
[1736823392434,0.31658,3159.8,3159.7,3.6651]
[1736823393631,0.31658,3159.8,3159.7,0.4573]
[1736823397740,0.31658,3159.9,3159.7,0.77389]
[1736823398136,0.31657,3160.0,3159.8,0.31658]
[1736823398840,0.31657,3160.0,3159.7,0.4573]
[1736823399029,0.31657,3160.0,3159.7,0.77389]
[1736823399734,0.31658,3159.9,3159.7,0.77389]
[1736823401040,0.31657,3160.0,3159.7,0.77389]
[1736823401336,3.6914,3160.2,3159.7,0.77389]
[1736823401547,0.31658,3159.8,3159.7,0.4573]
[1736823402043,0.31658,3159.8,3159.6,0.3166]
[1736823402241,0.4684,3159.7,3159.6,0.3166]
[1736823403239,0.4684,3159.7,3159.5,0.9863]
[1736823403437,0.4684,3159.7,3159.6,0.3166]
[1736823403740,0.31658,3159.9,3159.7,0.31659]
[1736823404243,0.31658,3159.9,3159.8,0.4958]
[1736823404735,0.31657,3160.0,3159.8,0.4958]
[1736823405137,0.31656,3160.0,3159.8,0.4958]
[1736823407647,0.71162936,3160.1,3159.8,0.4958]
[1736823407851,0.31657,3159.9,3159.8,0.4958]
[1736823408349,0.71162936,3160.1,3159.8,0.4958]
[1736823408748,0.31657,3159.9,3159.8,0.4958]
[1736823411949,0.31657,3160.0,3159.8,0.4958]
[1736823412651,0.4684,3160.1,3159.9,0.31657]
[1736823412853,0.4684,3160.1,3160.0,0.9852]
[1736823413051,3.2078,3160.3,3160.0,0.9852]
[1736823413243,0.31655,3160.2,3160.0,1.30176]
[1736823413552,3.52434,3160.3,3160.0,0.9852]
[1736823413744,0.31655,3160.2,3160.0,1.30176]
[1736823413950,3.2078,3160.3,3160.0,1.30176]
[1736823414151,3.52434,3160.3,3160.0,1.30176]
[1736823414345,0.31655,3160.2,3160.0,1.30176]
[1736823414952,3.52434,3160.3,3160.0,1.30176]
[1736823415343,0.31655,3160.2,3160.0,1.30176]
[1736823415544,3.2078,3160.3,3160.0,1.30176]
[1736823415855,0.31654,3160.3,3160.0,1.30176]
[1736823416257,0.31654,3160.3,3160.1,0.31655]
[1736823416551,0.31652,3160.5,3160.3,0.31653]
[1736823416850,0.31652,3160.5,3160.4,0.4672]
[1736823417254,0.4545,3160.6,3160.4,0.4672]
[1736823417548,0.4545,3160.6,3160.5,0.9299]
[1736823417751,0.31648,3160.9,3160.6,0.3165]
[1736823417954,0.4683,3161.0,3160.5,1.24641]
[1736823418150,0.31649,3160.8,3160.5,1.24641]
[1736823420352,0.31649,3160.7,3160.5,1.24641]
[1736823420551,0.31649,3160.8,3160.5,1.24641]
[1736823420955,0.31648,3160.9,3160.6,0.3165]
[1736823421357,0.31649,3160.8,3160.6,0.3165]
[1736823421851,0.4683,3161.0,3160.7,0.31649]
[1736823422158,0.31647,3160.9,3160.8,0.4904]
[1736823422354,0.31646,3161.1,3160.9,0.31647]
[1736823422654,0.31643,3161.4,3161.1,0.31645]
[1736823422950,0.31643,3161.4,3161.2,0.4904]
[1736823423353,0.4801,3161.5,3161.3,0.31643]
[1736823423551,0.79652,3161.5,3161.3,2.54271838]
[1736823423752,0.79652,3161.5,3161.2,0.80684]
[1736823424656,0.31643,3161.4,3161.2,0.4904]
[1736823425255,0.31645,3161.2,3161.0,4.182]
[1736823425461,0.4801,3161.5,3161.0,4.182]
[1736823425462,0.31645,3161.1,3161.0,4.182]
[1736823425756,0.4696,3161.1,3161.0,4.182]
[1736823426053,0.78605,3161.1,3161.0,0.9742]
[1736823426353,0.31645,3161.2,3161.0,3.51691838]
[1736823426549,0.4513,3161.5,3161.0,0.9742]
[1736823426749,0.31646,3161.0,3160.9,3.2078]
[1736823428456,0.31648,3160.9,3160.6,0.3165]
[1736823428756,0.4513,3160.8,3160.6,0.3165]
[1736823430257,0.76779,3160.8,3160.6,0.3165]
[1736823430853,0.4513,3160.8,3160.6,0.3165]
[1736823431957,0.4513,3160.8,3160.7,0.31649]
[1736823433261,0.31647,3161.0,3160.7,0.31649]
[1736823433458,1.20069985,3161.1,3160.5,2.7443]
[1736823433664,1.01825985,3161.1,3160.8,0.31648]
[1736823433972,3.2078,3161.2,3160.7,2.54271838]
[1736823434159,3.2078,3161.2,3161.1,0.31645]
[1736823436259,3.2078,3161.2,3161.0,0.31646]
[1736823436461,0.4766,3161.1,3161.0,0.31646]
[1736823437465,3.2078,3161.2,3161.1,0.31645]
[1736823437664,0.4766,3161.6,3161.0,2.54271838]
[1736823437863,0.54955088,3161.7,3161.4,0.31642]
[1736823438071,0.3164,3161.7,3161.4,0.31642]
[1736823439667,0.4766,3161.8,3161.1,4.643]
[1736823439868,0.31641,3161.6,3161.2,1.284]
[1736823440069,0.31641,3161.6,3161.4,0.31642]
[1736823440269,0.3164,3161.7,3161.2,1.284]
[1736823440474,0.3164,3161.7,3161.4,0.31642]
[1736823441074,0.3164,3161.7,3161.5,0.31641]
[1736823441272,0.79299,3161.8,3161.6,0.9546]
[1736823441573,0.79299,3161.8,3161.6,1.4189]
[1736823442067,0.4766,3161.8,3161.6,1.4189]
[1736823442276,3.2078,3161.9,3161.6,1.4189]
[1736823442277,3.52418,3161.9,3161.6,1.7353]
[1736823443280,3.2078,3161.9,3161.6,1.7353]
[1736823443579,0.31639,3161.8,3161.6,1.4189]
[1736823444278,3.2078,3161.9,3161.6,1.4189]
[1736823444482,3.2078,3161.9,3161.6,3.96161838]
[1736823444673,0.31639,3161.8,3161.6,4.27801838]
[1736823444874,3.2078,3162.3,3161.6,3.96161838]
[1736823445371,0.31639,3161.8,3161.6,3.96161838]
[1736823446980,0.31639,3161.8,3161.6,4.27801838]
[1736823450078,3.50489508,3162.3,3161.6,4.27801838]
[1736823450282,0.31638,3161.9,3161.7,0.31639]
[1736823450590,0.31638,3161.9,3161.6,4.27801838]
[1736823451082,0.3164,3161.8,3161.6,3.96161838]
[1736823451287,0.3164,3161.8,3161.6,4.27802838]
[1736823451983,0.3164,3161.7,3161.6,3.96161838]
[1736823452180,0.3164,3161.7,3161.5,3.52421]
[1736823452485,0.484,3161.6,3161.5,3.1621627]
[1736823457287,0.484,3161.6,3160.7,2.54271838]
[1736823457484,6.21861838,3161.5,3160.5,3.7028]
[1736823457681,6.21861838,3161.5,3160.5,5.9413]
[1736823457986,6.21861838,3161.5,3160.9,0.31647]
[1736823458185,0.31646,3161.2,3160.9,0.31647]
[1736823458583,0.77316,3161.1,3160.9,0.31647]
[1736823458791,1.24326,3161.1,3160.9,0.31647]
[1736823458984,1.24326,3161.1,3160.5,5.9413]
[1736823459290,0.9268,3161.1,3160.8,0.31648]
[1736823459586,0.31648,3160.9,3160.6,0.3165]
[1736823459988,0.4872,3161.0,3160.6,0.3165]
[1736823460288,0.31649,3160.8,3160.6,0.3165]
[1736823460792,0.4872,3161.0,3160.6,0.3165]
[1736823460793,0.485,3160.7,3160.6,0.3165]
[1736823461588,0.485,3160.7,3160.5,5.9413]
[1736823461589,0.485,3160.7,3160.5,6.25781]
[1736823461787,0.485,3160.7,3160.6,0.31651]
[1736823462395,0.8015,3160.7,3160.5,4.97481]
[1736823462796,0.485,3160.7,3160.5,4.6583]
[1736823462996,0.485,3160.7,3160.5,3.2078]
[1736823463196,0.8015,3160.7,3160.5,3.2078]
[1736823463593,0.31651,3160.6,3160.5,3.2078]
[1736823463798,0.31651,3160.6,3160.5,2.89118901]
[1736823465000,0.31652,3160.5,3160.2,0.31654]
[1736823465297,0.78562,3160.5,3160.2,0.31654]
[1736823465693,0.78562,3160.5,3160.1,1.284]
[1736823465694,0.31653,3160.4,3160.1,1.60055]
[1736823466090,0.4919,3160.3,3160.1,1.60055]
[1736823466291,0.4919,3160.3,3160.0,1.4806]
[1736823466292,0.80844,3160.3,3160.0,3.08116]
[1736823466894,0.31655,3160.2,3160.0,2.7646]
[1736823467799,0.31655,3160.2,3160.0,1.4806]
[1736823468097,0.4919,3160.3,3159.8,0.31658]
[1736823468098,0.31656,3160.1,3159.8,0.31658]
[1736823468305,0.4893,3160.0,3159.8,0.31658]
[1736823469305,0.24142976,3160.6,3159.8,2.54271838]
[1736823469497,0.24142976,3160.6,3160.1,0.31655]
[1736823469498,0.31653,3160.4,3160.1,0.31655]
[1736823469901,0.4898,3160.5,3159.8,2.54271838]
[1736823470103,0.80632,3160.5,3160.2,0.31654]
[1736823470293,0.31653,3160.4,3160.1,0.31655]
[1736823470793,0.31654,3160.3,3160.0,0.31656]
[1736823470990,3.6976,3160.5,3160.1,0.4891]
[1736823471306,0.31655,3160.2,3160.1,0.4891]
[1736823471704,0.31654,3160.3,3160.1,0.4891]
[1736823472104,0.31654,3160.3,3160.1,0.9602]
[1736823472409,0.77163,3160.4,3160.1,1.27675]
[1736823472797,0.4551,3160.4,3160.1,1.27675]
[1736823472998,0.31654,3160.3,3160.1,1.27675]
[1736823473204,0.77163,3160.4,3160.1,1.27675]
[1736823473402,3.6976,3160.5,3160.2,0.4679]
[1736823473607,0.31654,3160.3,3160.2,0.4679]
[1736823475301,3.6976,3160.5,3160.2,0.4679]
[1736823475508,0.31653,3160.4,3160.2,0.4679]
[1736823475706,0.31654,3160.3,3160.2,0.4679]
[1736823475902,0.31653,3160.4,3160.2,0.4679]
[1736823476201,0.31653,3160.4,3160.2,0.78444]
[1736823476799,0.80632,3160.5,3160.2,0.78444]
[1736823477502,0.80632,3160.5,3160.2,0.4679]
[1736823477709,0.4898,3160.5,3160.2,0.4679]
[1736823477904,0.55793976,3160.6,3160.4,0.31653]
[1736823478200,0.31652,3160.5,3160.2,0.4679]
[1736823478401,0.55793976,3160.6,3160.3,0.31653]
[1736823478905,0.24142976,3160.6,3160.3,0.31653]
[1736823479110,0.31652,3160.5,3160.3,0.31653]
[1736823480203,0.31652,3160.5,3160.2,0.78444]
[1736823480402,0.31652,3160.5,3160.2,0.4679]
[1736823480601,0.24142976,3160.6,3160.2,0.4679]
[1736823480602,0.4874,3160.4,3160.3,0.31653]
[1736823481308,0.4874,3160.4,3160.2,0.4679]
[1736823481510,0.4874,3160.4,3160.3,0.31654]
[1736823482412,0.4874,3160.4,3160.2,0.4679]
[1736823482914,0.4874,3160.4,3160.3,0.31654]
[1736823485409,0.23553306,3160.5,3160.2,0.4679]
[1736823485609,0.4597,3160.6,3160.4,0.31653]
[1736823486107,0.4597,3160.6,3160.5,0.4739]
[1736823486308,0.3165,3160.7,3160.5,0.79042]
[1736823486512,0.3165,3160.7,3160.6,0.4879]
[1736823488619,0.4597,3160.8,3160.5,0.4739]
[1736823488811,0.4597,3160.8,3160.3,0.4863]
[1736823489013,0.31653,3160.4,3160.3,0.9378]
[1736823489811,0.31652,3160.5,3160.3,0.9378]
[1736823490215,0.4956,3160.4,3160.3,0.9378]
[1736823490612,0.81213,3160.4,3160.3,0.9378]
[1736823490813,0.4956,3160.4,3160.3,1.25434]
[1736823495525,0.81213,3160.4,3160.3,0.4863]
[1736823495719,1.27043,3160.4,3160.3,0.4863]
[1736823496023,1.27043,3160.4,3160.1,1.59955]
[1736823496326,1.73963,3160.4,3160.1,1.59955]
[1736823496821,1.73963,3160.4,3160.2,0.31655]
[1736823498923,1.4231,3160.4,3160.2,0.31655]
[1736823500512,1.4231,3160.4,3160.0,2.2316]
[1736823500723,1.4231,3160.4,3160.3,0.31654]
[1736823501117,1.4231,3160.4,3160.2,0.31654]
[1736823501318,1.4231,3160.4,3160.0,2.2316]
[1736823501525,1.4231,3160.4,3160.3,0.31654]
[1736823503830,1.4231,3160.4,3160.0,2.2316]
[1736823504017,1.4231,3160.4,3159.1,0.25963078]
[1736823504018,3.2078,3160.1,3159.4,3.2078]
[1736823504216,2.54271838,3159.7,3159.3,0.31664]
[1736823504416,0.31662,3159.5,3159.2,1.75264]
[1736823504824,1.4009,3159.6,3159.2,0.9409]
[1736823505026,1.4009,3159.6,3159.1,0.31665]
[1736823505027,0.31663,3159.4,3159.1,0.31665]
[1736823505324,0.31662,3159.5,3159.0,0.31667]
[1736823505630,1.71751,3159.6,3159.3,0.31663]
[1736823506030,2.07212099,3159.6,3159.3,0.31663]
[1736823506330,2.01455548,3159.6,3159.3,0.31663]
[1736823506628,1.69794548,3159.6,3159.3,0.31663]
[1736823506926,1.71751,3159.6,3159.4,0.4665]
[1736823507833,1.4009,3159.6,3159.4,0.4665]
[1736823508019,1.4009,3159.6,3158.9,4.80351838]
[1736823508220,1.4009,3159.6,3159.0,0.4665]
[1736823508421,0.31662,3159.5,3159.2,0.31665]
[1736823509129,1.4009,3159.6,3159.0,0.4665]
[1736823509331,0.31663,3159.4,3159.1,0.31665]
[1736823511227,0.31662,3159.5,3159.2,0.31664]
[1736823512331,3.52442,3159.5,3159.2,0.31665]
[1736823512631,0.4645,3159.6,3159.5,0.31662]
[1736823512928,0.4645,3159.6,3159.0,0.4665]
[1736823513131,0.69906065,3159.6,3159.3,0.31663]
[1736823513332,0.69906065,3159.6,3159.4,0.76923]
[1736823513835,0.69906065,3159.6,3159.5,0.9541]
[1736823514324,1.01567065,3159.6,3159.4,0.4526]
[1736823515030,1.01567065,3159.6,3159.4,0.9409]
[1736823515931,1.01567065,3159.6,3159.4,1.25753]
[1736823516729,0.69906065,3159.6,3159.4,0.9409]
[1736823516930,0.31662,3159.5,3159.2,0.31664]
[1736823517132,0.31662,3159.5,3159.3,0.31664]
[1736823518435,1.01567065,3159.6,3159.3,0.31664]
[1736823519338,0.69906065,3159.6,3159.4,0.31662]
[1736823519628,0.69906065,3159.6,3159.5,0.4729]
[1736823519833,0.69906065,3159.6,3159.5,0.9374]
[1736823520029,1.01567065,3159.6,3159.5,0.9374]
[1736823520430,0.69906065,3159.6,3159.5,0.9374]
[1736823520827,1.01567065,3159.6,3159.5,0.9374]
[1736823522436,0.31662,3159.5,3159.3,0.31663]
[1736823522636,1.01567065,3159.6,3159.3,0.79833]
[1736823523240,0.69906065,3159.6,3159.3,0.79833]
[1736823523740,0.31662,3159.5,3159.3,0.79833]
[1736823525834,0.69906065,3159.6,3159.3,0.4817]
[1736823526039,0.31662,3159.5,3159.3,0.4817]
[1736823526836,0.31662,3159.5,3159.3,0.79833]
[1736823530539,0.70481652,3159.6,3159.3,0.4817]
[1736823530842,0.31662,3159.5,3159.3,0.4817]
[1736823535447,0.31664,3159.3,3159.2,1.7403]
[1736823535839,0.31664,3159.3,3159.2,0.4573]
[1736823540141,0.9458,3159.4,3159.2,0.4573]
[1736823540346,0.31662,3159.5,3159.3,1.39974314]
[1736823540545,0.70481652,3159.6,3159.3,1.85974314]
[1736823540851,1.02142652,3159.6,3159.4,0.31662]
[1736823541049,0.31662,3159.5,3159.3,1.85974314]
[1736823541545,0.4645,3159.6,3159.3,1.54311314]
[1736823541751,3.2078,3160.0,3159.5,1.08311314]
[1736823541950,3.2078,3160.0,3159.8,1.39969314]
[1736823542148,3.2078,3160.0,3159.9,0.9189]
[1736823542149,3.52437,3160.0,3159.9,0.9189]
[1736823543245,3.2078,3160.0,3159.9,1.23548]
[1736823544148,0.31654,3160.3,3160.0,0.31656]
[1736823544351,0.31652,3160.5,3160.3,0.31654]
[1736823544541,0.90172254,3160.6,3160.4,0.81402]
[1736823544742,0.90172254,3160.6,3160.5,0.4941]
[1736823545653,0.31648,3160.9,3160.5,0.4941]
[1736823545850,0.31649,3160.8,3160.5,0.4941]
[1736823546258,0.31649,3160.8,3160.5,0.81062]
[1736823546946,0.79038,3160.9,3160.6,0.3165]
[1736823547141,0.79038,3160.9,3160.5,0.4941]
[1736823547142,0.4739,3160.9,3160.5,0.4941]
[1736823547539,0.31649,3160.8,3160.5,0.81061]
[1736823547944,0.4739,3160.9,3160.5,0.4941]
[1736823548345,0.4739,3160.9,3160.7,0.31649]
[1736823549046,0.79038,3160.9,3160.6,0.3165]
[1736823549247,0.4739,3160.9,3160.7,0.31649]
[1736823549949,0.4739,3160.9,3160.5,0.4941]
[1736823549950,0.4739,3160.9,3160.8,0.31649]
[1736823550355,3.2078,3161.0,3160.5,0.4941]
[1736823550652,3.2078,3161.0,3160.7,0.31649]
[1736823550653,3.52427,3161.0,3160.7,0.31649]
[1736823550853,3.52427,3161.0,3160.8,0.4644]
[1736823551251,3.52427,3161.0,3160.9,0.4776]
[1736823555857,0.31647,3161.0,3160.9,0.4776]
[1736823557960,6.2271066,3161.1,3160.5,0.4941]
[1736823558160,0.31649,3160.8,3160.6,0.4579]
[1736823558356,0.31649,3160.8,3160.6,0.77441]
[1736823558551,0.4711,3160.7,3160.6,0.77441]
[1736823563466,0.4711,3160.7,3160.6,1.85651269]
[1736823564863,0.4711,3160.7,3160.6,1.54000269]
[1736823565164,0.4711,3160.7,3160.6,1.85651269]
[1736823567459,1.55320269,3160.7,3160.3,4.4898]
[1736823567661,0.31653,3160.4,3160.3,4.4898]
[1736823567856,0.31653,3160.4,3160.3,3.2078]
[1736823569972,0.31653,3160.4,3160.3,2.89108773]
[1736823570769,0.31653,3160.4,3159.8,1.08210269]
[1736823571066,4.77770269,3160.5,3159.8,1.08210269]
[1736823571067,0.31658,3159.9,3159.8,2.36310269]
[1736823571473,0.31658,3159.9,3159.8,1.281]
[1736823572073,0.31659,3159.8,3159.6,1.281]
[1736823572268,0.4817,3159.7,3159.6,1.281]
[1736823572475,0.4817,3159.7,3159.6,0.81361]
[1736823572669,0.4817,3159.7,3159.1,3.2078]
[1736823572670,0.4817,3159.7,3159.3,1.281]
[1736823572864,0.31663,3159.4,3159.3,1.281]
[1736823573373,0.31662,3159.5,3159.3,1.281]
[1736823573770,4.1845,3159.7,3159.0,0.951]
[1736823573970,4.1845,3159.7,3159.0,2.232]
[1736823574170,4.1845,3159.7,3159.1,0.31665]
[1736823574377,0.31662,3159.5,3159.2,0.31664]
[1736823576077,0.31662,3159.5,3159.3,0.4653]
[1736823576572,0.31662,3159.4,3159.3,0.4653]
[1736823576769,0.31662,3159.5,3159.3,0.4653]
[1736823577776,4.1845,3159.7,3159.3,0.4653]
[1736823577975,0.31662,3159.5,3159.3,0.4653]